bitfinex/quotes_SOLUSD_20240605
["timestamp","ask_amount","ask_price","bid_price","bid_amount"]
[1717614794193,2.1421,172.73,172.67,2.1427]
[1717614794415,7.23,172.71,172.67,2.1427]
[1717614794618,7.23,172.71,172.68,2.1426]
[1717614795233,7.23,172.71,172.69,2.1425]
[1717614796011,0.17,172.72,172.69,2.1425]
[1717614796215,2.1418,172.75,172.7,2.1424]
[1717614796431,7.23,172.73,172.7,2.1424]
[1717614796944,2.1418,172.75,172.7,2.1424]
[1717614797126,7.23,172.73,172.7,2.1424]
[1717614797330,7.23,172.73,172.69,2.1425]
[1717614797550,7.23,172.72,172.69,2.1425]
[1717614797920,7.23,172.72,172.7,2.1424]
[1717614798538,7.23,172.71,172.68,2.1426]
[1717614798714,7.23,172.7,172.67,2.1427]
[1717614798915,7.23,172.68,172.67,2.1428]
[1717614799349,7.23,172.68,172.66,2.1428]
[1717614800416,7.23,172.68,172.67,2.1428]
[1717614800617,7.23,172.69,172.67,2.1428]
[1717614800924,7.23,172.7,172.67,2.1428]
[1717614801116,7.23,172.7,172.68,2.1426]
[1717614801319,2.1421,172.73,172.68,2.1426]
[1717614801541,7.23,172.71,172.68,2.1426]
[1717614801917,7.23,172.69,172.67,2.1427]
[1717614804334,7.23,172.71,172.68,2.1426]
[1717614805070,0.17,172.72,172.7,2.1423]
[1717614805257,7.23,172.73,172.71,2.1423]
[1717614805846,7.23,172.73,172.7,2.1423]
[1717614806052,2.1417,172.76,172.7,2.1423]
[1717614806358,7.23,172.73,172.7,2.1423]
[1717614806740,0.34,172.74,172.7,2.1423]
[1717614806941,7.23,172.73,172.7,2.1423]
[1717614807243,7.23,172.72,172.7,2.1424]
[1717614807448,7.23,172.72,172.7,2.1423]
[1717614808456,7.23,172.72,172.71,2.1423]
[1717614808649,2.141,172.82,172.76,2.1416]
[1717614808956,7.23,172.79,172.76,2.1416]
[1717614810144,7.23,172.8,172.77,2.1415]
[1717614810460,7.23,172.8,172.76,2.1416]
[1717614811558,7.23,172.79,172.75,2.1417]
[1717614812247,7.23,172.79,172.76,2.1416]
[1717614812640,2.4811,172.81,172.76,2.1416]
[1717614812841,7.23,172.79,172.76,2.1416]
[1717614813142,7.23,172.79,172.75,2.1417]
[1717614813830,7.23,172.77,172.71,4.2844]
[1717614814030,7.23,172.76,172.72,2.1421]
[1717614814246,7.23,172.73,172.68,6.0132]
[1717614814452,7.23,172.72,172.7,2.1423]
[1717614815234,7.23,172.72,172.71,2.1423]
[1717614816059,7.23,172.73,172.71,2.1423]
[1717614816659,7.23,172.72,172.71,2.1423]
[1717614817156,0.17,172.75,172.72,2.142]
[1717614817358,7.23,172.73,172.71,2.1422]
[1717614818552,0.17,172.74,172.71,2.1422]
[1717614818749,7.23,172.73,172.72,2.1421]
[1717614818956,119.719454,172.7,172.69,12.8551]
[1717614820457,119.719454,172.7,172.69,6.4275]
[1717614821661,119.719454,172.7,172.69,12.8552]
[1717614821839,119.719454,172.7,172.69,35.2675]
[1717614822044,119.719454,172.7,172.69,28.0375]
[1717614823063,119.719454,172.7,172.69,44.1416]
[1717614823245,119.719454,172.7,172.69,51.3716]
[1717614823449,119.719454,172.7,172.69,44.1416]
[1717614823633,119.719454,172.7,172.69,51.3716]
[1717614826766,119.719454,172.7,172.69,96.3716]
[1717614827957,119.719454,172.7,172.69,89.1416]
[1717614828164,119.719454,172.7,172.69,96.3716]
[1717614830543,119.719454,172.7,172.69,28.0375]
[1717614830754,119.719454,172.7,172.69,35.2675]
[1717614833371,119.719454,172.7,172.69,28.6554]
[1717614835371,119.719454,172.7,172.69,21.4254]
[1717614835667,119.719454,172.7,172.69,28.6554]
[1717614836674,119.719454,172.7,172.69,21.4254]
[1717614836855,119.719454,172.7,172.69,28.6554]
[1717614839984,119.719454,172.7,172.69,21.4254]
[1717614842054,119.719454,172.7,172.69,12.8552]
[1717614842262,119.719454,172.7,172.69,2.1425]
[1717614848181,119.719454,172.7,172.69,20.0853]
[1717614848375,119.719454,172.7,172.69,28.6555]
[1717614851867,119.719454,172.7,172.69,21.4255]
[1717614852089,119.719454,172.7,172.69,28.6555]
[1717614852273,119.719454,172.7,172.69,21.4255]
[1717614853690,119.719454,172.7,172.69,28.6555]
[1717614854189,119.719454,172.7,172.65,4.2859]
[1717614854190,127.119454,172.7,172.65,4.2859]
[1717614854372,7.23,172.69,172.66,2.1428]
[1717614854577,7.23,172.69,172.65,2.1429]
[1717614854891,13.466,172.69,172.66,2.1429]
[1717614855190,13.466,172.69,172.67,2.1427]
[1717614856662,6.236,172.69,172.67,2.1427]
[1717614856863,6.236,172.69,172.68,2.1426]
[1717614857059,127.289454,172.7,172.68,2.1426]
[1717614857698,127.289454,172.7,172.67,2.1427]
[1717614857875,133.608254,172.7,172.67,2.1427]
[1717614858366,133.608254,172.7,172.68,2.1426]
[1717614860378,133.608254,172.7,172.67,2.1427]
[1717614861273,133.268254,172.7,172.68,2.1426]
[1717614863181,133.268254,172.7,172.67,2.1427]
[1717614865376,133.268254,172.7,172.68,2.1426]
[1717614865897,133.268254,172.7,172.67,2.1427]
[1717614866895,126.038254,172.7,172.68,2.1426]
[1717614867084,133.268254,172.7,172.68,2.1426]
[1717614869012,119.719454,172.7,172.69,6.4276]
[1717614869300,119.719454,172.7,172.69,2.1425]
[1717614870217,119.719454,172.7,172.69,12.8553]
[1717614870389,119.719454,172.7,172.69,28.6555]
[1717614879700,119.719454,172.7,172.69,21.4255]
[1717614880019,119.719454,172.7,172.69,28.6555]
[1717614883217,119.719454,172.7,172.69,12.8553]
[1717614883694,7.23,172.73,172.71,2.1422]
[1717614883897,13.7162,172.73,172.71,2.1422]
[1717614884519,13.7162,172.73,172.66,8.5712]
[1717614884520,6.2089,172.72,172.66,8.5712]
[1717614884696,6.2089,172.71,172.7,2.1424]
[1717614886111,7.23,172.72,172.7,2.1424]
[1717614886310,7.23,172.73,172.71,2.1423]
[1717614886509,6.5431,172.74,172.72,2.1421]
[1717614886724,6.5431,172.74,172.73,2.142]
[1717614886924,6.5431,172.74,172.72,2.1421]
[1717614888127,6.5431,172.74,172.71,2.1422]
[1717614888128,13.7731,172.74,172.71,2.1422]
[1717614888634,7.23,172.73,172.71,2.1422]
[1717614889434,7.23,172.73,172.7,2.1423]
[1717614890014,13.3942,172.73,172.7,2.1423]
[1717614891450,7.23,172.72,172.7,2.1423]
[1717614891625,73.39112336,172.6,172.59,17.4364]
[1717614891828,73.39112336,172.6,172.59,50.7934]
[1717614892028,73.39112336,172.6,172.59,95.7934]
[1717614898540,7.23,172.71,172.59,93.6496]
[1717614898848,7.23,172.71,172.65,7.23]
[1717614899836,0.17,172.72,172.65,7.23]
[1717614900033,7.57,172.72,172.66,7.23]
[1717614900236,0.34,172.72,172.66,7.23]
[1717614900437,0.34,172.72,172.62,7.23]
[1717614900749,7.57,172.72,172.66,7.23]
[1717614901114,7.23,172.71,172.65,7.23]
[1717614901734,7.57,172.72,172.66,7.23]
[1717614903137,7.23,172.7,172.64,7.23]
[1717614904124,7.23,172.7,172.63,7.23]
[1717614904530,7.23,172.7,172.58,4.77681927]
[1717614904719,45.0,172.69,172.63,7.23]
[1717614905434,45.0,172.69,172.58,24.77681927]
[1717614905646,7.23,172.68,172.62,7.23]
[1717614905941,6.2711,172.66,172.62,7.23]
[1717614907332,7.23,172.68,172.62,7.23]
[1717614907537,45.0,172.67,172.64,7.23]
[1717614907743,45.0,172.67,172.65,7.23]
[1717614908349,45.0,172.67,172.64,7.23]
[1717614908543,14.0364,172.7,172.58,20.0]
[1717614908544,6.4664,172.7,172.66,7.23]
[1717614908753,13.5511,172.74,172.66,7.23]
[1717614908999,6.3211,172.74,172.65,8.42762373]
[1717614909124,6.3211,172.79,172.73,7.23]
[1717614909320,6.3211,172.79,172.74,7.23]
[1717614909523,6.3211,172.79,172.75,7.23]
[1717614909919,13.787,172.81,172.75,7.23]
[1717614910126,7.23,172.77,172.66,5.957]
[1717614910346,7.23,172.77,172.71,7.23]
[1717614910947,6.2327,172.75,172.71,7.23]
[1717614911542,45.0,172.76,172.67,5.787]
[1717614911777,6.2327,172.78,172.74,7.23]
[1717614912962,45.0,172.77,172.74,7.23]
[1717614913467,45.0,172.77,172.75,7.23]
[1717614914260,45.0,172.77,172.68,25.787]
[1717614914466,45.0,172.77,172.72,7.23]
[1717614914670,6.6027,172.77,172.72,7.23]
[1717614914966,45.0,172.76,172.68,25.787]
[1717614915144,45.0,172.76,172.68,20.0]
[1717614915465,52.23,172.76,172.7,7.23]
[1717614915642,51.047,172.76,172.71,7.23]
[1717614916072,51.047,172.76,172.72,7.23]
[1717614916442,51.047,172.76,172.73,7.23]
[1717614917149,45.0,172.76,172.74,7.23]
[1717614917348,45.0,172.76,172.75,7.23]
[1717614918557,13.277,172.81,172.75,7.23]
[1717614918868,6.5646,172.79,172.75,7.23]
[1717614919167,45.0,172.78,172.75,7.23]
[1717614919540,45.0,172.78,172.74,7.23]
[1717614920066,6.3405,172.77,172.68,20.0]
[1717614920239,45.0,172.76,172.72,7.23]
[1717614920443,52.23,172.78,172.66,20.0]
[1717614920668,52.23,172.78,172.72,7.23]
[1717614921859,45.0,172.78,172.73,7.23]
[1717614922341,45.0,172.78,172.74,7.23]
[1717614922774,51.5093,172.78,172.74,7.23]
[1717614923380,51.5093,172.78,172.73,7.23]
[1717614923665,45.0,172.78,172.67,5.787]
[1717614923870,51.5093,172.78,172.73,7.23]
[1717614925274,6.3619,172.77,172.73,7.23]
[1717614925475,45.0,172.76,172.73,7.23]
[1717614927072,51.6092,172.76,172.67,5.787]
[1717614927377,58.8392,172.76,172.7,7.23]
[1717614928558,51.6092,172.76,172.7,7.23]
[1717614928773,0.17,172.75,172.65,8.42762373]
[1717614928957,7.23,172.74,172.68,7.23]
[1717614929278,6.6092,172.72,172.65,8.42762373]
[1717614929461,6.6092,172.72,172.68,7.23]
[1717614929670,45.0,172.71,172.68,7.23]
[1717614930050,51.1597,172.71,172.68,7.23]
[1717614930846,45.0,172.71,172.69,7.23]
[1717614931073,45.0,172.71,172.65,8.42762373]
[1717614931267,45.0,172.71,172.67,7.23]
[1717614931498,6.1091,172.71,172.67,7.23]
[1717614931779,45.0,172.7,172.67,7.23]
[1717614933157,6.3633,172.68,172.65,8.42762373]
[1717614933370,45.0,172.67,172.65,15.65762373]
[1717614933569,60.766,172.7,172.65,15.65762373]
[1717614933767,6.2355,172.68,172.65,15.65762373]
[1717614933983,45.0,172.67,172.65,15.65762373]
[1717614934662,45.0,172.67,172.66,7.23]
[1717614935072,6.2491,172.73,172.66,7.23]
[1717614935250,6.2491,172.73,172.7,7.23]
[1717614935452,6.2491,172.73,172.71,7.23]
[1717614937075,45.0,172.72,172.7,7.23]
[1717614937583,45.0,172.72,172.69,7.23]
[1717614940582,6.2755,172.77,172.65,8.42762373]
[1717614940887,6.2755,172.77,172.72,7.23]
[1717614941075,7.23,172.78,172.72,7.23]
[1717614941259,6.4831,172.76,172.72,7.23]
[1717614941460,6.4831,172.75,172.66,20.0]
[1717614941779,6.4831,172.75,172.71,7.23]
[1717614942164,45.0,172.74,172.71,7.23]
[1717614943500,45.0,172.74,172.66,20.0]
[1717614943784,45.0,172.74,172.71,7.23]
[1717614944981,45.0,172.74,172.72,7.23]
[1717614947489,45.0,172.74,172.71,7.23]
[1717614948481,45.0,172.74,172.72,7.23]
[1717614950800,45.0,172.74,172.71,7.23]
[1717614951575,45.0,172.74,172.66,20.0]
[1717614951790,45.0,172.74,172.71,7.23]
[1717614953399,45.0,172.74,172.7,7.23]
[1717614953695,45.0,172.73,172.7,7.23]
[1717614953902,58.4774,172.75,172.7,7.23]
[1717614954201,51.2474,172.75,172.7,7.23]
[1717614955875,0.34,172.74,172.66,20.0]
[1717614956085,7.57,172.74,172.68,7.23]
[1717614956409,51.0656,172.73,172.68,7.23]
[1717614958272,51.1999,172.73,172.68,7.23]
[1717614963299,6.2092,172.72,172.68,7.23]
[1717614963483,45.0,172.71,172.68,7.23]
[1717614963801,45.0,172.71,172.67,7.23]
[1717614964505,51.3328,172.71,172.67,7.23]
[1717614965581,51.3328,172.71,172.65,8.42762373]
[1717614966099,6.1188,172.69,172.65,8.42762373]
[1717614966309,45.0,172.68,172.65,8.42762373]
[1717614966993,45.0,172.68,172.65,15.65762373]
[1717614967181,6.1039,172.66,172.65,8.42762373]
[1717614967382,51.4439,172.66,172.65,8.42762373]
[1717614967593,51.1039,172.66,172.65,8.42762373]
[1717614970291,51.4439,172.66,172.65,8.42762373]
[1717614975919,45.0,172.66,172.65,8.42762373]
[1717614976393,45.17,172.66,172.65,8.42762373]
[1717614976703,45.34,172.66,172.65,8.42762373]
[1717614979518,51.8933,172.66,172.65,8.42762373]
[1717614981001,45.34,172.66,172.65,8.42762373]
[1717614989419,45.0,172.66,172.65,8.42762373]
[1717614992101,45.34,172.66,172.65,8.42762373]
[1717615011851,45.0,172.66,172.65,8.42762373]
[1717615012039,6.5533,172.7,172.65,15.65762373]
[1717615012349,0.17,172.69,172.65,8.42762373]
[1717615012854,2.1422,172.72,172.65,8.42762373]
[1717615013031,7.23,172.7,172.65,8.42762373]
[1717615013343,2.1422,172.72,172.65,8.42762373]
[1717615013551,7.23,172.7,172.65,8.42762373]
[1717615014073,45.0,172.69,172.65,8.42762373]
[1717615014239,45.0,172.69,172.65,15.65762373]
[1717615014550,52.23,172.7,172.65,8.42762373]
[1717615015852,45.0,172.7,172.65,8.42762373]
[1717615016052,52.23,172.7,172.65,8.42762373]
[1717615017754,45.0,172.7,172.65,15.65762373]
[1717615019460,45.0,172.7,172.67,7.23]
[1717615019647,8.7457,172.74,172.67,7.23]
[1717615019848,7.23,172.73,172.67,7.23]
[1717615020240,34.72,172.83,172.72,7.23]
[1717615020241,9.3713,172.79,172.72,7.23]
[1717615020447,2.1414,172.78,172.68,20.0]
[1717615020634,7.23,172.76,172.68,20.0]
[1717615020835,7.23,172.76,172.7,7.23]
[1717615021656,0.17,172.75,172.7,7.23]
[1717615021856,45.34,172.75,172.7,7.23]
[1717615022434,45.34,172.75,172.65,23.67602373]
[1717615022641,7.23,172.73,172.65,8.42762373]
[1717615022840,45.34,172.72,172.67,7.23]
[1717615023359,52.57,172.72,172.67,7.23]
[1717615024233,52.57,172.72,172.65,8.42762373]
[1717615024434,52.57,172.72,172.67,7.23]
[1717615027441,45.34,172.72,172.68,7.23]
[1717615027762,45.0,172.71,172.68,7.23]
[1717615028074,0.34,172.72,172.68,7.23]
[1717615030061,0.34,172.72,172.67,7.23]
[1717615032839,7.23,172.7,172.65,8.42762373]
[1717615033152,45.0,172.69,172.65,8.42762373]
[1717615033862,45.0,172.69,172.65,15.65762373]
[1717615034054,45.0,172.7,172.65,15.65762373]
[1717615038845,52.23,172.71,172.65,15.65762373]
[1717615039152,0.34,172.7,172.66,7.23]
[1717615039354,45.0,172.71,172.66,7.23]
[1717615039748,6.4862,172.76,172.65,8.42762373]
[1717615039952,7.23,172.75,172.69,7.23]
[1717615040765,9.3718,172.75,172.69,7.23]
[1717615040967,9.3719,172.74,172.68,7.23]
[1717615041173,45.34,172.73,172.68,7.23]
[1717615041666,45.34,172.73,172.69,7.23]
[1717615042057,45.0,172.72,172.69,7.23]
[1717615042369,0.34,172.73,172.69,7.23]
[1717615043074,0.34,172.73,172.65,8.42762373]
[1717615043364,0.34,172.73,172.68,7.23]
[1717615043542,0.34,172.73,172.69,7.23]
[1717615050060,45.0,172.74,172.69,7.23]
[1717615051605,47.1419,172.74,172.69,7.23]
[1717615052162,0.17,172.73,172.69,7.23]
[1717615052363,9.712,172.73,172.65,8.42762373]
[1717615052666,45.0,172.72,172.68,7.23]
[1717615053171,0.17,172.71,172.65,8.42762373]
[1717615053483,0.34,172.71,172.65,8.42762373]
[1717615053687,0.34,172.71,172.66,7.23]
[1717615053983,9.3725,172.7,172.65,8.42762373]
[1717615054282,45.34,172.69,172.65,8.42762373]
[1717615061471,45.34,172.69,172.65,15.65762373]
[1717615061676,0.34,172.69,172.65,15.65762373]
[1717615062095,45.0,172.7,172.66,7.23]
[1717615062591,45.0,172.71,172.66,7.23]
[1717615062906,38.24907048,172.76,172.65,8.42762373]
[1717615063078,9.372,172.74,172.68,7.23]
[1717615063272,20.0,172.73,172.68,7.23]
[1717615064400,45.0,172.72,172.68,7.23]
[1717615065698,45.0,172.72,172.69,7.23]
[1717615067395,0.34,172.74,172.69,7.23]
[1717615067585,45.34,172.74,172.69,7.23]
[1717615068713,45.34,172.74,172.7,7.23]
[1717615068876,0.34,172.74,172.69,7.23]
[1717615069076,54.3719,172.75,172.69,7.23]
[1717615069980,2.1419,172.74,172.69,7.23]
[1717615070190,54.3719,172.74,172.69,7.23]
[1717615070701,54.3719,172.74,172.68,7.23]
[1717615072396,52.23,172.74,172.68,7.23]
[1717615072617,52.23,172.74,172.69,7.23]
[1717615075315,45.0,172.74,172.69,7.23]
[1717615075491,54.3718,172.75,172.69,7.23]
[1717615075689,2.3119,172.74,172.69,7.23]
[1717615076103,0.17,172.74,172.69,7.23]
[1717615078300,9.5419,172.74,172.65,8.42762373]
[1717615078498,54.3721,172.73,172.65,8.42762373]
[1717615078694,7.4,172.72,172.65,8.42762373]
[1717615078894,52.23,172.71,172.65,8.42762373]
[1717615079109,45.0,172.7,172.65,15.65762373]
[1717615081589,45.0,172.7,172.65,8.42762373]
[1717615082210,45.0,172.7,172.65,15.65762373]
[1717615082609,58.4055,172.7,172.65,8.42762373]
[1717615083311,51.1755,172.7,172.65,15.65762373]
[1717615090293,45.0,172.7,172.65,15.65762373]
[1717615090899,45.0,172.7,172.65,8.42762373]
[1717615091102,45.0,172.7,172.65,15.65762373]
[1717615091920,45.0,172.7,172.66,7.23]
[1717615092211,45.0,172.71,172.66,7.23]
[1717615092715,45.0,172.71,172.67,7.23]
[1717615092934,45.34,172.72,172.67,7.23]
[1717615094227,47.4822,172.72,172.67,7.23]
[1717615096518,54.7122,172.72,172.66,7.23]
[1717615096722,54.7122,172.72,172.65,8.42762373]
[1717615096922,54.7122,172.72,172.66,7.23]
[1717615097225,7.23,172.71,172.65,15.65762373]
[1717615097521,45.0,172.7,172.65,15.65762373]
[1717615098622,45.0,172.7,172.65,8.42762373]
[1717615100223,6.5351,172.69,172.65,8.42762373]
[1717615100404,45.0,172.68,172.65,8.42762373]
[1717615101615,52.23,172.68,172.65,8.42762373]
[1717615104725,45.0,172.68,172.65,8.42762373]
[1717615108131,0.34,172.69,172.65,8.42762373]
[1717615108309,2.142,172.73,172.66,7.23]
[1717615108498,6.2013,172.74,172.67,7.23]
[1717615108707,6.2013,172.74,172.68,7.23]
[1717615109122,2.1416,172.77,172.69,7.23]
[1717615109815,7.23,172.75,172.69,7.23]
[1717615110218,0.34,172.74,172.69,7.23]
[1717615111415,45.34,172.74,172.69,7.23]
[1717615112028,52.57,172.74,172.69,7.23]
[1717615113227,45.34,172.74,172.69,7.23]
[1717615116234,45.0,172.74,172.69,7.23]
[1717615116537,9.3717,172.76,172.7,7.23]
[1717615116714,6.2013,172.78,172.65,6.1253]
[1717615116715,45.0,172.75,172.71,7.23]
[1717615117121,45.0,172.76,172.71,7.23]
[1717615117612,15.5728,172.78,172.72,7.23]
[1717615117819,13.4313,172.78,172.72,7.23]
[1717615118535,6.2013,172.78,172.73,7.23]
[1717615118919,45.0,172.77,172.73,7.23]
[1717615119135,45.0,172.78,172.65,6.1253]
[1717615119327,9.5416,172.77,172.71,7.23]
[1717615119535,45.0,172.76,172.71,7.23]
[1717615120124,45.0,172.76,172.7,7.23]
[1717615122636,45.0,172.76,172.71,7.23]
[1717615125639,7.4,172.75,172.69,7.23]
[1717615125843,45.0,172.74,172.69,7.23]
[1717615126330,45.0,172.74,172.7,7.23]
[1717615127519,2.1409,172.82,172.73,7.23]
[1717615127719,7.23,172.8,172.73,7.23]
[1717615129339,2.1409,172.82,172.73,7.23]
[1717615129546,7.23,172.8,172.73,7.23]
[1717615129952,7.4,172.79,172.73,7.23]
[1717615130152,52.23,172.78,172.73,7.23]
[1717615130735,52.23,172.78,172.68,15.6984]
[1717615130955,7.23,172.77,172.71,7.23]
[1717615132439,45.0,172.76,172.65,6.1253]
[1717615132653,7.23,172.74,172.68,7.23]
[1717615134252,7.4,172.75,172.69,7.23]
[1717615134553,45.0,172.74,172.7,7.23]
[1717615134919,0.17,172.78,172.7,7.23]
[1717615135127,7.23,172.76,172.7,7.23]
[1717615135723,7.4,172.75,172.66,20.0]
[1717615136059,45.0,172.74,172.7,7.23]
[1717615136548,45.0,172.74,172.69,7.23]
[1717615137125,45.0,172.74,172.7,7.23]
[1717615137729,45.0,172.74,172.66,20.0]
[1717615138142,7.4,172.73,172.63,15.1528]
[1717615138455,52.23,172.72,172.63,15.1528]
[1717615138659,7.23,172.72,172.66,7.23]
[1717615139660,7.4,172.73,172.67,7.23]
[1717615139862,45.0,172.72,172.67,7.23]
[1717615140650,45.0,172.72,172.68,7.23]
[1717615140952,45.17,172.73,172.68,7.23]
[1717615143048,7.4,172.75,172.69,7.23]
[1717615143361,45.17,172.74,172.69,7.23]
[1717615143541,45.0,172.74,172.69,7.23]
[1717615144239,45.0,172.74,172.64,14.21511189]
[1717615144240,45.0,172.74,172.64,8.42811189]
[1717615144539,45.0,172.74,172.7,7.23]
[1717615145054,45.17,172.75,172.7,7.23]
[1717615145261,0.17,172.74,172.7,7.23]
[1717615147162,0.17,172.74,172.64,8.42811189]
[1717615147372,0.17,172.74,172.69,7.23]
[1717615147539,0.17,172.74,172.64,14.21511189]
[1717615147540,0.17,172.74,172.64,8.42811189]
[1717615147857,7.23,172.71,172.64,8.42811189]
[1717615148037,7.23,172.71,172.65,7.23]
[1717615148439,7.23,172.71,172.64,8.42811189]
[1717615148663,7.23,172.69,172.64,8.42811189]
[1717615148859,52.4,172.68,172.64,8.42811189]
[1717615149064,7.23,172.68,172.64,8.42811189]
[1717615150661,45.17,172.7,172.64,8.42811189]
[1717615150662,7.23,172.69,172.64,8.42811189]
[1717615150874,0.17,172.68,172.64,15.65811189]
[1717615151167,45.17,172.7,172.65,7.23]
[1717615161773,51.05507048,172.77,172.69,7.23]
[1717615161958,9.3718,172.75,172.69,7.23]
[1717615162151,7.23,172.75,172.69,7.23]
[1717615162477,7.23,172.74,172.68,7.23]
[1717615163183,45.0,172.73,172.68,7.23]
[1717615164555,52.23,172.73,172.67,7.23]
[1717615166660,45.0,172.73,172.68,7.23]
[1717615168257,45.0,172.73,172.68,6.23]
[1717615168573,0.17,172.74,172.69,7.23]
[1717615168954,0.17,172.75,172.7,7.23]
[1717615169156,45.17,172.75,172.7,7.23]
[1717615170358,0.17,172.75,172.71,7.23]
[1717615170558,7.23,172.77,172.72,7.23]
[1717615170860,45.17,172.76,172.72,7.23]
[1717615172481,0.17,172.76,172.72,7.23]
[1717615182901,0.17,172.76,172.72,6.73]
[1717615183998,0.17,172.76,172.66,6.1253]
[1717615184207,9.5417,172.76,172.71,7.23]
[1717615184378,9.5417,172.76,172.66,6.1253]
[1717615184379,45.0,172.75,172.7,7.23]
[1717615184576,45.0,172.75,172.67,5.787]
[1717615184577,45.0,172.75,172.69,7.23]
[1717615184783,52.23,172.75,172.69,7.23]
[1717615185583,45.0,172.75,172.7,7.23]
[1717615189588,7.23,172.79,172.73,7.23]
[1717615189796,9.3713,172.79,172.73,7.23]
[1717615190305,7.23,172.79,172.73,7.23]
[1717615190897,0.17,172.78,172.73,7.23]
[1717615191211,45.17,172.78,172.73,7.23]
[1717615191590,45.17,172.78,172.7,15.5516]
[1717615191786,0.17,172.78,172.74,7.23]
[1717615191990,2.1411,172.81,172.74,7.23]
[1717615192225,7.23,172.81,172.75,7.23]
[1717615192393,9.3711,172.81,172.75,7.23]
[1717615193319,7.23,172.8,172.74,7.23]
[1717615193517,0.17,172.81,172.74,7.23]
[1717615193700,0.17,172.8,172.74,7.23]
[1717615194205,45.17,172.8,172.74,7.23]
[1717615194795,0.17,172.8,172.74,7.23]
[1717615195006,2.141,172.82,172.75,7.23]
[1717615195007,7.4,172.81,172.75,7.23]
[1717615195328,0.17,172.81,172.75,7.23]
[1717615195510,7.23,172.81,172.75,7.23]
[1717615196295,0.34,172.82,172.75,7.23]
[1717615196501,7.23,172.81,172.72,5.787]
[1717615196730,7.57,172.82,172.76,7.23]
[1717615197017,45.0,172.81,172.76,7.23]
[1717615197907,0.34,172.82,172.76,7.23]
[1717615198106,2.1404,172.86,172.8,7.23]
[1717615198294,9.3705,172.86,172.73,6.1253]
[1717615198493,7.23,172.85,172.79,7.23]
[1717615199517,45.0,172.84,172.79,7.23]
[1717615200194,2.1402,172.88,172.79,7.23]
[1717615200398,7.23,172.85,172.79,7.23]
[1717615200706,52.23,172.84,172.78,7.23]
[1717615202017,7.23,172.83,172.74,20.0]
[1717615202220,45.17,172.82,172.77,7.23]
[1717615203218,52.4,172.82,172.76,7.23]